{"text_format":"1","workbook":"xlsx","n_sheets":1,"sheets":["Кресла и стулья"],"not_rendered":{"charts":0,"images":84,"macros":0,"external_links":0,"defined_names":1,"comments":0,"pivot_tables":0},"unopened":[],"bounds":{"document_bytes":16777216,"sheet_cells":100000,"rows_first":2000,"rows_last":500,"rows_between":2000,"halvings":0,"cell_chars":16384,"cell_head_chars":4096},"cells_cut":0,"cells_raw":0,"read":"whole","date_system":"1900"}

{"sheet":"Кресла и стулья","index":0,"n_rows":80,"n_cols":8,"rows_kept":80,"cut":false,"hidden":false,"merged":[[59,0,59,3],[59,4,59,5],[73,4,74,4],[60,0,60,4],[60,5,60,7],[41,1,41,2],[59,6,59,7],[44,4,45,4],[61,0,61,7],[62,5,63,5],[62,6,63,6],[62,7,63,7],[62,0,63,0],[62,1,63,1],[62,2,63,2],[63,3,64,3],[62,4,63,4],[58,0,58,7],[30,0,30,1],[0,0,0,7],[1,0,1,3],[1,6,1,7],[2,5,2,7],[1,4,1,5],[2,0,2,4],[3,0,3,7]]}
[]
["Кресла и стулья собственног производства в наличии",null,null,null,"Скидка до 70%",null,"2026-05-25"]
["Скидки действуют на модели в наличии до 30.12.2026",null,null,null,null,"Позиции на складе и в ТЦ"]
["Офис: г. Одинцово, ул Акуловская, 2. Тел: +7 (495) 755-77-07. https://directoria-moder.ru"]
["Код","Номенклатура","Обивка","Свободный остаток","ФОТО","Цена, розница","Скидка от 40%\nдо 70%","Цена со скидкой"]
["D0000010215","1. Кресла руководителя",null,"шт."]
["D0000042840","Кресло Оскар (ULTRATEX Black,,Эко - кожа,)",null,"1 в ТК \"Три Кита\"",null,112839,40,{"$f":"ROUND(F7*(100-G7)/100,0)","v":67703}]
["D0000042798","Кресло Оскар М (ULTRATEX Black,,Эко - кожа,)",null,"10\n(8 шт. в ТК \"Три Кита\")",null,104061,40,{"$f":"ROUND(F8*(100-G8)/100,0)","v":62437}]
["D0000042798","Кресло Оскар М (Черная,Полнокожное,Кожа черная,)",null,"4\n(3шт. в Гранде)",null,104061,40,{"$f":"ROUND(F9*(100-G9)/100,0)","v":62437}]
["D0000027612","Кресло Бруно (Madras Verdino,Полнокожное,Кожа цветная,ТА 06В)",null,1,null,123896,40,74338]
["D0000037108","Кресло Бруно М (Madras Verdino,Полнокожное,Кожа цветная,ТА 06В)",null,"11\nТК \"Три Кита\" и \"Гранд\", склады",null,113927,40,68356]
["D0000044735","Кресло Акиро (Green Verdino,Полнокожное,Кожа цветная,Дуб Термо)",null,2,null,120062,40,72037]
["D0000044736","Кресло Акиро М (Green Verdino,Полнокожное,Кожа цветная,Дуб Термо)",null,"10\nТК \"Три Кита\" и \"Гранд\", склады",null,110619,40,66371]
["D0000038284","Кресло Бенуа (ULTRATEX Cappuccino,,Эко - кожа,)",null,2,null,113134,40,67880]
["D0000024138","Кресло Интер M (601,Комбинированное,Кожа цветная,ТА 14С)",null,1,null,105189,40,63113]
["D0000024138","Кресло Интер M (Nocciola,Полнокожное,Кожа цветная,ТА 07)",null,1,null,116042,40,69625]
["D0000024138","Кресло Интер M (Madras Муссон,Полнокожное,Кожа цветная,ТА 06)",null,1,null,116042,40,69625]
["D0000024057","Кресло Модильяни (730,Комбинированное,Кожа цветная,ТА 06В)",null,1,null,77794,40,46676]
["D0000024058","Кресло Модильяни М (730,Комбинированное,Кожа цветная,ТА 06В)",null,3,null,75598,40,45359]
["D0000026073","Стул Интер-G (Prestige choco,Полнокожное,Кожа цветная,ТА 14С)",null,1,null,112162,40,{"$f":"ROUND(F20*(100-G20)/100,0)","v":67297}]
["D0000026073","Стул Интер-G (Madras Oceania,Полнокожное,Кожа цветная,ТА 06В)",null,2,null,112162,40,{"$f":"ROUND(F21*(100-G21)/100,0)","v":67297}]
["D0000026073","Стул Интер-G (Green Verdino,Полнокожное,Кожа цветная,ТА 06В)",null,1,null,103650,40,{"$f":"ROUND(F22*(100-G22)/100,0)","v":62190}]
["D0000037163","Кресло Дали DB-700 с накл. на подлокотники (Black 21,Комбинированное,Кожа цветная,ТА 06В)",null,1,"+ накладки                                                                                                                                                                                                                                                               на\nподлокотники",42186,40,{"$f":"ROUND(F23*(100-G23)/100,0)","v":25312}]
["D0000046505","Кресло Чегевара М (с перетяжкой чехла) (Тедди 21,,Ткань,)",null,1,"Необходимо \nуточнить\nцвет \nсетки спинки",46713,40,{"$f":"ROUND(F24*(100-G24)/100,0)","v":28028}]
["D0000049489","Диван Сальвадор-1 (Mustang 542,,Эко - кожа,)",null,1,null,69474,40,{"$f":"ROUND(F25*(100-G25)/100,0)","v":41684}]
["D0000033228","Диван ТЕКО Лайт-1 (Black 3001,,Эко - кожа,Салтилло)",null,4,null,31896,40,19138]
["D0000007641","Диван Шагал-2  (730,Комбинированное,Кожа цветная)",null,2,null,84625,40,50775]
["D0000046464","Диван Верди-2R (стол) (Nocciola,Полнокожное,Кожа цветная,Черный матовый)",null,1,"Цена без подушки и валика! ",139662,40,83797]
["D0000038199","Оттоманка Верди-R (Madras Муссон,Полнокожное,Кожа цветная,Черный матовый)",null,1,"Цена без подушек и валиков! \nНеобходимо уточнить, правое или левое расположение.",196338,40,117803]
["D0000048399","Пуф Бор-Бора камень D700 (Oracul 130,Эко - Кожа)",null,2,null,23972,40,14383]
["Позиции с повышенными скидками"]
["D0000017115","Кресло ALTHEA с высокой спинкой (Premier 09,,Ткань,Белый матовый)",null,1,null,82316,70,24695]
["D0000017116","Кресло ALTHEA с низкой спинкой (Premier 09,,Ткань,Белый матовый)",null,1,null,78867,70,23660]
["D0000017116","Кресло ALTHEA с низкой спинкой (White 03,Комбинированное,Кожа цветная,ТА 23A)",null,4,null,86787,70,26036]
["D0000017116","Кресло ALTHEA с низкой спинкой (2003,Комбинированное,Кожа цветная,ТА 01)",null,1,null,86787,70,26036]
["D0000027617","Кресло Буше М (Arancio,Полнокожное,Кожа цветная,)",null,2,null,77102,70,23131]
["D0000027617","Кресло Буше М (Aloe,Полнокожное,Кожа цветная,)",null,1,null,77102,70,23131]
["D0000029471","Кресло Дали DB-700M/пластик (3001,,Эко - кожа,)",null,1,null,24069,70,7221]
["D0000036966","Кресло Делоне М (3001,,Эко - кожа,)",null,6,null,60891,70,18267]
["D0000036966","Кресло Делоне М (Prestige Granit,Полнокожное,Кожа цветная)",null,1,null,86415,70,25925]
["D0000024099","Кресло Олимпия М (Olive,Полнокожное,Кожа цветная,)",null,1,null,64115,70,19235]
["D0000009669","Кресла (нескладская программа)"]
["D0000026973","Кресло Да Винчи М (3025,,Эко - кожа,ТА 07)",null,6,null,73490,70,22047]
["D0000045195","Кресло Маке М со съемной подушкой на магнитах (SOFA 16,,Ткань,)",null,1,null,71273,70,21382]
["D0000026974","Кресло Таргет (Черная,Комбинированное,Кожа черная,)",null,1,null,28380,70,8514]
["D0000026974","Кресло Таргет (Santorini 0413 Perf,,Эко - кожа,)",null,1,null,25090,70,7527]
["D0000026974","Кресло Таргет (Evolution 1050,Полнокожное,Кожа цветная,)",null,1,null,44109,70,13233]
[null,"2. Стулья для посетителей"]
["D0000027366","Стул ALTHEA со средней спинкой (Nocciola,Полнокожное,Кожа цветная,ТА 14B)",null,1,null,80942,70,24283]
["D0000027366","Стул ALTHEA со средней спинкой (Stella-Clean White,Комбинированное,Кожа цветная,ТА 12B)",null,3,null,73320,70,21996]
["D0000007313","Стул Боттичелли SB-969  (Musk 110,,Ткань,ТА 07)",null,1,null,26883,70,8065]
["D0000007313","Стул Боттичелли SB-969  (L112,Полнокожное,Кожа цветная,ТА 05)","Н/д",2,null,49395,70,14819]
["D0000007307","Стул Дали DB-700LB (Oracul 695,Эко - Кожа,ТА 06В)",null,1,null,41589,70,12477]
["D0000007335","Стул Монарх TA5020 (730,Комбинированное,Кожа цветная,ТА 07)",null,1,null,42538,70,12761]
[null,"Стулья (нескладская)"]
["D0000050343","Кресло Лайт D80 с перетяжкой (Romeo 11,,Ткань,)",null,1,null,31039,70,9312]
["D0000045332","Стул ALTHEA с высокой спинкой (Nocciolla,Комбинированное,Кожа цветная,ТА 23A)",null,1,null,79736,70,23921]
[]
[]
["Распродажа кресел и стульев",null,null,null,"Скидка до 70%",null,"2026-01-27"]
["Повышенные скидки на распродажу действуют на модели в наличии до 30.12.2026",null,null,null,null,"Позиции на складе и в ТЦ"]
["Офис и склад: г. Одинцово, ул Акуловская, 2. Тел: +7 (495) 755-77-07. https://directoria-moder.ru"]
["Код","Номенклатура","Обивка","Свободный остаток","ФОТО","Цена","Скидка до 70%","Цена со скидкой\n70%"]
[null,null,null,"В ед. хранения"]
[null,"3. Диваны"]
["D0000007379","Диван Боттичелли Энгл-U (ТА601,Комбинированное,Кожа цветная,ТА 05)",null,1,null,92551,70,{"$f":"ROUND(F66*0.3,0)","v":27765}]
["D0000024065","Диван ДАО Light-1 (2004,Комбинированное,Кожа цветная,ТА 14В)",null,1,null,159351,70,47805]
["D0000010338","Диван Дега Энгл-3R (3025,,Эко - Кожа,)",null,1,null,43244,70,12973]
["D0000007351","Диван Леонардо-1 DS-3 (Черная,Комбинированное,Кожа черная,ТА 15)",null,2,null,69062,70,20719]
["D0000007661","Диван Романо-1 (L102,Комбинированное,Кожа цветная,ТА 02)",null,1,null,132547,70,39764]
["D0000007662","Диван Романо-2 (102,Полнокожное,Кожа цветная,ТА 02)",null,1,null,239237,70,71771]
["D0000000007","3.2.Нескладская программа"]
["D0000010807","Диваны"]
["D0000007646","Диван Дао-1 (2003,Комбинированное,Кожа цветная,ТА 01)",null,1,null,134931,70,{"$f":"ROUND(F74*0.3,0)","v":40479}]
["D0000007646","Диван Дао-1 (104,Комбинированное,Кожа цветная,ТА 01)",null,2,null,134931,70,40479]
["D0000043826","Диван Джошуа К015А-2 (Velvet Lux 33,,Ткань,)",null,2,"180*23*100",39289,70,11787]
["D0000045644","Диван Джошуа К015С-1 (VERONA 06 Light Grey,,Ткань,)",null,1,"120*56*43",21569,70,6471]
["D0000045645","Диван Джошуа К015С-2 (Velvet Lux 46,,Ткань,)",null,1,"180*56*43",26372,70,7912]
["D0000052118","Диван Тарантино-1 (с подушкой) (Hilton 17,,Ткань,)",null,1,null,80170,70,24051]
["D0000051356","Диван Трезор-6 (Vivaldi 27,,Ткань,)",null,1,null,174139,70,52242]